fUSD/lending_fUSD_20250606
["ID","MTS","AMOUNT","RATE_DAILY","PERIOD"]
[364798591,1749245448765,-500.0,0.00027573,5]
[364798592,1749245448789,-409.80880066,0.00027573,5]
[364798593,1749245448798,-500.0,0.00027573,5]
[364798594,1749245448807,-1600.0,0.000276,10]
[364798595,1749245448818,-109766.55,0.000276,2]
[364798596,1749245448827,-390.27346318,0.00027615,2]
[364798597,1749245448836,-161.6696733,0.00027615,2]
[364798598,1749245448845,-150.0,0.00027617,2]
[364798599,1749245448855,-1028.16663308,0.00027624,17]
[364798600,1749245448864,-5240.16183361,0.00027626,2]
[364798601,1749245448873,-150.0,0.00027635,2]
[364798602,1749245448882,-150.0,0.00027656,2]
[364798603,1749245448892,-441.0,0.00027671,2]
[364798604,1749245448902,-247.04675082,0.00027695,18]
[364798605,1749245448911,-150.0,0.00027698,5]
[364798606,1749245448920,-1752.0,0.000277,2]
[364798607,1749245448930,-1000.0,0.000277,2]
[364798608,1749245448939,-2000.0,0.000277,10]
[364798609,1749245448948,-1615.79579224,0.000277,5]
[364798610,1749245448958,-156.587,0.00027704,2]
[364798611,1749245448967,-215.0738,0.00027704,2]
[364798612,1749245448976,-61771.97291749,0.00027705,2]
[364798613,1749245448986,-1871.7808129,0.00027707,2]
[364798614,1749245448996,-83923.5970536,0.00027707,2]
[364798615,1749245449005,-642.6651855,0.00027707,2]
[364798616,1749245449018,-107640.7423069,0.00027707,2]
[364798617,1749245449027,-8434.4888248,0.00027707,2]
[364798618,1749245449036,-4338.659188,0.00027707,2]
[364798619,1749245449046,-150.0,0.00027715,2]
[364798620,1749245449055,-318.11274148,0.00027725,10]
[364798621,1749245449065,-300.0,0.00027725,10]
[364798622,1749245449074,-300.0,0.00027725,10]
[364798623,1749245449084,-480.0,0.00027726,5]
[364798624,1749245449093,-480.0,0.00027726,5]
[364798625,1749245449103,-480.0,0.00027726,5]
[364798626,1749245449113,-651.31,0.00027726,5]
[364798627,1749245449122,-480.0,0.00027726,5]
[364798628,1749245449131,-200.86,0.00027726,5]
[364798629,1749245449140,-480.0,0.00027726,5]
[364798630,1749245449150,-483.33,0.00027726,5]
[364798631,1749245449159,-538.52,0.00027726,5]
[364798632,1749245449168,-480.0,0.00027726,5]
[364798633,1749245449177,-480.0,0.00027726,2]
[364798634,1749245449187,-480.0,0.00027726,5]
[364798635,1749245449197,-480.0,0.00027726,5]
[364798636,1749245449206,-685.83,0.00027726,5]
[364798637,1749245449215,-480.0,0.00027726,5]
[364798638,1749245449225,-480.0,0.00027726,5]
[364798639,1749245449234,-549.23,0.00027726,5]
[364798640,1749245449244,-500.02,0.00027726,5]
[364798641,1749245449254,-619.23,0.00027726,5]
[364798642,1749245449264,-480.0,0.00027726,5]
[364798643,1749245449273,-480.0,0.00027726,5]
[364798644,1749245449283,-480.0,0.00027726,5]
[364798645,1749245449293,-538.98,0.00027726,5]
[364798646,1749245449302,-480.0,0.00027726,5]
[364798647,1749245449312,-480.0,0.00027726,5]
[364798648,1749245449322,-516.51,0.00027726,5]
[364798649,1749245449331,-480.0,0.00027726,5]
[364798650,1749245449341,-480.0,0.00027726,5]
[364798651,1749245449351,-480.0,0.00027726,5]
[364798652,1749245449360,-508.36,0.00027726,5]
[364798653,1749245449370,-480.0,0.00027726,5]
[364798654,1749245449380,-594.92,0.00027726,5]
[364798655,1749245449390,-480.0,0.00027726,5]
[364798656,1749245449399,-480.0,0.00027726,5]
[364798657,1749245449409,-655.89,0.00027726,5]
[364798658,1749245449419,-480.0,0.00027726,5]
[364798659,1749245449428,-480.0,0.00027726,5]
[364798660,1749245449438,-533.19,0.00027726,5]
[364798661,1749245449447,-480.0,0.00027726,5]
[364798662,1749245449458,-508.07,0.00027726,5]
[364798663,1749245449467,-480.0,0.00027726,5]
[364798664,1749245449477,-504.81,0.00027726,5]
[364798665,1749245449487,-480.0,0.00027726,5]
[364798666,1749245449497,-480.0,0.00027726,5]
[364798667,1749245449507,-480.0,0.00027726,5]
[364798668,1749245449516,-556.66,0.00027726,5]
[364798669,1749245449526,-656.61,0.00027726,5]
[364798670,1749245449535,-480.0,0.00027726,5]
[364798671,1749245449544,-480.0,0.00027726,5]
[364798672,1749245449554,-480.0,0.00027726,5]
[364798673,1749245449563,-880.83,0.00027726,5]
[364798674,1749245449573,-480.0,0.00027726,5]
[364798675,1749245449582,-1046.06,0.00027726,5]
[364798676,1749245449592,-571.800087,0.00027726,5]
[364798677,1749245449601,-480.0,0.00027726,5]
[364798678,1749245449611,-480.0,0.00027726,5]
[364798679,1749245449620,-480.0,0.00027726,5]
[364798680,1749245449629,-480.0,0.00027726,5]
[364798681,1749245449638,-480.0,0.00027726,5]
[364798682,1749245449647,-480.0,0.00027726,5]
[364798683,1749245449657,-559.351977,0.00027726,5]
[364798684,1749245449666,-480.0,0.00027726,5]
[364798685,1749245449675,-636.86,0.00027726,5]
[364798686,1749245449684,-492.47,0.00027726,5]
[364798687,1749245449693,-480.0,0.00027726,5]
[364798688,1749245449702,-480.0,0.00027726,5]
[364798689,1749245449711,-527.03,0.00027726,5]
[364798690,1749245449720,-480.30412403,0.00027726,5]
[364798691,1749245449730,-527.07,0.00027726,5]
[364798692,1749245449739,-480.0,0.00027726,5]
[364798693,1749245449748,-480.0,0.00027726,5]
[364798694,1749245449758,-829.98,0.00027726,5]
[364798695,1749245449767,-480.0,0.00027726,5]
[364798696,1749245449777,-480.0,0.00027726,5]
[364798697,1749245449786,-480.0,0.00027726,5]
[364798698,1749245449796,-480.0,0.00027726,5]
[364798699,1749245449805,-480.0,0.00027726,5]
[364798700,1749245449815,-480.0,0.00027726,5]
[364798701,1749245449825,-492.47,0.00027726,5]
[364798702,1749245449835,-480.0,0.00027726,5]
[364798703,1749245449844,-523.07,0.00027726,5]
[364798704,1749245449853,-480.0,0.00027726,5]
[364798705,1749245449863,-480.0,0.00027726,5]
[364798706,1749245449872,-480.0,0.00027726,5]
[364798707,1749245449881,-480.0,0.00027726,5]
[364798708,1749245449891,-480.0,0.00027726,5]
[364798709,1749245449900,-800.29,0.00027726,5]
[364798710,1749245449910,-480.0,0.00027726,5]
[364798711,1749245449919,-480.0,0.00027726,5]
[364798712,1749245449929,-480.0,0.00027726,5]
[364798713,1749245449939,-702.95,0.00027726,5]
[364798714,1749245449949,-480.0,0.00027726,5]
[364798715,1749245449958,-771.000696,0.00027726,5]
[364798716,1749245449967,-480.0,0.00027726,5]
[364798717,1749245449977,-480.0,0.00027726,5]
[364798718,1749245449987,-480.0,0.00027726,5]
[364798719,1749245449996,-5472.06,0.00027726,5]
[364798720,1749245450006,-1065.447344,0.00027726,5]
[364798721,1749245450019,-480.0,0.00027726,5]
[364798722,1749245450029,-2440.57,0.00027726,5]
[364798723,1749245450039,-1814.61,0.00027726,5]
[364798724,1749245450048,-480.0,0.00027726,5]
[364798725,1749245450059,-5858.97,0.00027726,5]
[364798726,1749245450068,-2363.07,0.00027726,5]
[364798727,1749245450078,-1000.0,0.00027726,2]
[364798728,1749245450090,-480.0,0.00027726,5]
[364798729,1749245450100,-585.97,0.00027726,5]
[364798730,1749245450111,-480.0,0.00027726,5]
[364798731,1749245450121,-480.0,0.00027726,5]
[364798732,1749245450131,-659.35,0.00027726,5]
[364798733,1749245450140,-480.0,0.00027726,5]
[364798734,1749245450151,-1396.08,0.00027726,5]
[364798735,1749245450161,-642.87,0.00027726,5]
[364798736,1749245450170,-941.0,0.00027726,5]
[364798737,1749245450180,-1168.575528,0.00027726,5]
[364798738,1749245450189,-530.62445194,0.00027726,5]
[364798739,1749245450199,-900.91,0.00027726,5]
[364798740,1749245450208,-843.14,0.00027726,5]
[364798741,1749245450217,-506.99,0.00027726,5]
[364798742,1749245450227,-10746.06,0.00027726,5]
[364798743,1749245450237,-1353.33,0.00027726,5]
[364798744,1749245450247,-480.0,0.00027726,5]
[364798745,1749245450256,-480.0,0.00027726,5]
[364798746,1749245450266,-480.0,0.00027726,5]
[364798747,1749245450276,-1533.93,0.00027726,5]
[364798748,1749245450285,-1127.16,0.00027726,5]
[364798749,1749245450295,-1222.61,0.00027726,5]
[364798750,1749245450304,-1096.57,0.00027726,5]
[364798751,1749245450314,-638.2,0.00027726,5]
[364798752,1749245450324,-2733.98,0.00027726,5]
[364798753,1749245450334,-1416.92,0.00027726,5]
[364798754,1749245450344,-1292.067761,0.00027726,5]
[364798755,1749245450354,-1360.31,0.00027726,5]
[364798756,1749245450364,-868.83,0.00027726,5]
[364798757,1749245450373,-2950.26,0.00027726,5]
[364798758,1749245450383,-731.97,0.00027726,5]
[364798759,1749245450393,-1184.81,0.00027726,5]
[364798760,1749245450403,-1342.0,0.00027726,5]
[364798761,1749245450412,-480.0,0.00027726,5]
[364798762,1749245450421,-731.22,0.00027726,5]
[364798763,1749245450431,-1139.52,0.00027726,5]
[364798764,1749245450441,-480.0,0.00027726,5]
[364798765,1749245450450,-2337.68,0.00027726,5]
[364798766,1749245450460,-480.0,0.00027726,5]
[364798767,1749245450470,-480.0,0.00027726,5]
[364798768,1749245450479,-1831.6,0.00027726,5]
[364798769,1749245450491,-763.29,0.00027726,5]
[364798770,1749245450500,-1132.32,0.00027726,5]
[364798771,1749245450514,-480.0,0.00027726,5]
[364798772,1749245450524,-3008.51,0.00027726,5]
[364798773,1749245450534,-2113.05,0.00027726,5]
[364798774,1749245450544,-480.0,0.00027726,5]
[364798775,1749245450553,-862.65,0.00027726,5]
[364798776,1749245450563,-480.0,0.00027726,5]
[364798777,1749245450573,-2923.97,0.00027726,5]
[364798778,1749245450583,-1453.13,0.00027726,5]
[364798779,1749245450593,-4156.92,0.00027726,5]
[364798780,1749245450602,-480.0,0.00027726,5]
[364798781,1749245450612,-1274.65,0.00027726,5]
[364798782,1749245450621,-1332.06,0.00027726,5]
[364798783,1749245450631,-677.14666,0.00027726,5]
[364798784,1749245450642,-1082.7,0.00027726,5]
[364798785,1749245450651,-480.0,0.00027726,5]
[364798786,1749245450661,-1025.06,0.00027726,5]
[364798787,1749245450670,-480.0,0.00027726,5]
[364798788,1749245450681,-480.0,0.00027726,5]
[364798789,1749245450690,-1551.16,0.00027726,5]
[364798790,1749245450701,-1882.05,0.00027726,5]
[364798791,1749245450711,-951.78,0.00027726,5]
[364798792,1749245450721,-598.87,0.00027726,5]
[364798793,1749245450730,-480.0,0.00027726,5]
[364798794,1749245450740,-1613.93,0.00027726,5]
[364798795,1749245450750,-480.0,0.00027726,5]
[364798796,1749245450760,-817.65,0.00027726,5]
[364798797,1749245450769,-3420.12,0.00027726,5]
[364798798,1749245450779,-480.0,0.00027726,5]
[364798799,1749245450788,-603.979676,0.00027726,5]
[364798800,1749245450797,-480.0,0.00027726,5]
[364798801,1749245450807,-480.0,0.00027726,5]
[364798802,1749245450816,-1779.32,0.00027726,5]
[364798803,1749245450825,-4369.27,0.00027726,5]
[364798804,1749245450835,-1294.16,0.00027726,5]
[364798805,1749245450844,-1215.8,0.00027726,5]
[364798806,1749245450854,-1228.33,0.00027726,5]
[364798807,1749245450863,-632.6,0.00027726,5]
[364798808,1749245450872,-480.0,0.00027726,5]
[364798809,1749245450882,-480.0,0.00027726,5]
[364798810,1749245450892,-692.3,0.00027726,5]
[364798811,1749245450901,-1300.84,0.00027726,5]
[364798812,1749245450911,-1266.65,0.00027726,5]
[364798813,1749245450920,-12112.58,0.00027726,5]
[364798814,1749245450929,-497.69,0.00027726,5]
[364798815,1749245450939,-683.2,0.00027726,5]
[364798816,1749245450948,-480.0,0.00027726,5]
[364798817,1749245450957,-501.63,0.00027726,5]
[364798818,1749245450966,-705.09,0.00027726,5]
[364798819,1749245450975,-4732.68,0.00027726,5]
[364798820,1749245450986,-717.45,0.00027726,5]
[364798821,1749245450996,-974.5,0.00027726,5]
[364798822,1749245451006,-4416.75,0.00027726,5]
[364798823,1749245451019,-1656.72,0.00027726,5]
[364798824,1749245451028,-480.0,0.00027726,5]
[364798825,1749245451038,-244.20833865,0.00027726,5]
[364798826,1749245451051,-480.0,0.00027726,5]
[364798827,1749245451061,-480.0,0.00027726,5]
[364798828,1749245451070,-480.0,0.00027726,5]
[364798829,1749245451081,-682.68,0.00027726,5]
[364798830,1749245451090,-217.752716,0.00027726,5]
[364798831,1749245451100,-607.26,0.00027726,5]
[364798832,1749245451110,-7562.75,0.00027726,5]
[364798833,1749245451121,-597.24,0.00027726,5]
[364798834,1749245451131,-3844.59,0.00027726,5]
[364798835,1749245451140,-621.94,0.00027726,5]
[364798836,1749245451150,-480.0,0.00027726,5]
[364798837,1749245451160,-1661.61,0.00027726,5]
[364798838,1749245451170,-672.61,0.00027726,5]
[364798839,1749245451179,-480.0,0.00027726,5]
[364798840,1749245451189,-480.0,0.00027726,5]
[364798841,1749245451199,-2171.5,0.00027726,5]
[364798842,1749245451208,-480.0,0.00027726,5]
[364798843,1749245451217,-480.0,0.00027726,5]
[364798844,1749245451388,-904.82,0.00027726,5]
[364798845,1749245451409,-480.0,0.00027726,5]
[364798846,1749245451419,-487.01,0.00027726,5]
[364798847,1749245451428,-3523.57,0.00027726,5]
[364798848,1749245451438,-1412.37,0.00027726,5]
[364798849,1749245451448,-16871.99,0.00027726,5]
[364798850,1749245451459,-179.546228,0.00027726,5]
[364798851,1749245451468,-590.09,0.00027726,5]
[364798852,1749245451477,-3605.79,0.00027726,5]
[364798853,1749245451486,-1584.5,0.00027726,5]
[364798854,1749245451496,-569.63,0.00027726,5]
[364798855,1749245451505,-480.0,0.00027726,5]
[364798856,1749245451514,-1945.39,0.00027726,5]
[364798857,1749245451523,-3465.3,0.00027726,5]
[364798858,1749245451533,-1081.7,0.00027726,5]
[364798859,1749245451543,-2006.64,0.00027726,5]
[364798860,1749245451552,-531.04,0.00027726,5]
[364798861,1749245451563,-607.53,0.00027726,5]
[364798862,1749245451573,-1607.92,0.00027726,5]
[364798863,1749245451583,-480.0,0.00027726,5]
[364798864,1749245451594,-1750.07,0.00027726,5]
[364798865,1749245451604,-1119.57,0.00027726,5]
[364798866,1749245451613,-911.9,0.00027726,5]
[364798867,1749245451624,-480.0,0.00027726,5]
[364798868,1749245451633,-480.0,0.00027726,5]
[364798869,1749245451643,-480.0,0.00027726,5]
[364798870,1749245451653,-1710.78,0.00027726,5]
[364798871,1749245451663,-689.26,0.00027726,5]
[364798872,1749245451672,-480.0,0.00027726,5]
[364798873,1749245451681,-480.0,0.00027726,5]
[364798874,1749245451691,-1070.37,0.00027726,5]
[364798875,1749245451701,-623.94,0.00027726,5]
[364798876,1749245451711,-480.0,0.00027726,5]
[364798877,1749245451720,-1791.7,0.00027726,5]
[364798878,1749245451730,-1965.72,0.00027726,5]
[364798879,1749245451740,-480.0,0.00027726,5]
[364798880,1749245451751,-240.124881,0.00027726,5]
[364798881,1749245451761,-1996.69,0.00027726,5]
[364798882,1749245451771,-3288.44,0.00027726,5]
[364798883,1749245451781,-480.0,0.00027726,5]
[364798884,1749245451790,-1032.5,0.00027726,5]
[364798885,1749245451800,-771.7,0.00027726,5]
[364798886,1749245451810,-1627.97,0.00027726,5]
[364798887,1749245451819,-480.0,0.00027726,5]
[364798888,1749245451828,-670.33,0.00027726,5]
[364798889,1749245451838,-575.24,0.00027726,5]
[364798890,1749245451848,-4755.29,0.00027726,5]
[364798891,1749245451858,-2179.19,0.00027726,5]
[364798892,1749245451867,-480.0,0.00027726,5]
[364798893,1749245451877,-1950.69,0.00027726,5]
[364798894,1749245451887,-480.0,0.00027726,5]
[364798895,1749245451896,-622.31,0.00027726,5]
[364798896,1749245451905,-888.42,0.00027726,5]
[364798897,1749245451915,-1453.42,0.00027726,5]
[364798898,1749245451925,-683.26,0.00027726,5]
[364798899,1749245451935,-2483.76,0.00027726,5]
[364798900,1749245451944,-323.429583,0.00027726,5]
[364798901,1749245451955,-480.0,0.00027726,5]
[364798902,1749245451964,-747.35,0.00027726,5]
[364798903,1749245451974,-5842.1,0.00027726,5]
[364798904,1749245451984,-5650.54,0.00027726,5]
[364798905,1749245451994,-2077.01,0.00027726,5]
[364798906,1749245452003,-950.27,0.00027726,5]
[364798907,1749245452015,-499.06303799,0.00027726,5]
[364798908,1749245452025,-734.81,0.00027726,5]
[364798909,1749245452035,-480.0,0.00027726,5]
[364798910,1749245452046,-480.0,0.00027726,5]
[364798911,1749245452056,-638.71,0.00027726,5]
[364798912,1749245452066,-958.16,0.00027726,5]
[364798913,1749245452077,-1117.56,0.00027726,5]
[364798914,1749245452087,-3319.06,0.00027726,5]
[364798915,1749245452097,-480.0,0.00027726,5]
[364798916,1749245452106,-10869.49,0.00027726,5]
[364798917,1749245452116,-480.0,0.00027726,5]
[364798918,1749245452126,-992.85,0.00027726,5]
[364798919,1749245452136,-530.29,0.00027726,2]
[364798920,1749245452145,-1496.95,0.00027726,5]
[364798921,1749245452155,-230.27736612,0.00027726,5]
[364798922,1749245452164,-516.46,0.00027726,5]
[364798923,1749245452174,-63805.06,0.00027726,5]
[364798924,1749245452183,-597.24597375,0.00027726,2]
[364798925,1749245452193,-305.75,0.00027733,2]
[364798926,1749245452203,-303.98,0.00027733,2]
[364798927,1749245452212,-303.11,0.00027735,2]
[364798928,1749245452222,-301.68,0.00027735,2]
[364798929,1749245452232,-304.77,0.00027755,2]
[364798930,1749245452243,-302.12,0.00027755,2]
[364798931,1749245452253,-303.26,0.00027755,2]
[364798932,1749245452262,-500.0,0.00027773,5]
[364798933,1749245452272,-500.0,0.00027773,5]
[364798934,1749245452282,-2730.8860742,0.0002779,2]
[364798935,1749245452291,-484.09761484,0.0002779,2]
[364798936,1749245452302,-162.53229822,0.0002779,2]
[364798937,1749245452312,-2464.02623,0.000278,2]
[364798938,1749245452321,-1000.0,0.000278,2]
[364798939,1749245452331,-400.0,0.000278,10]
[364798940,1749245452341,-6500.0,0.000278,10]
[364798941,1749245452351,-150.0,0.00027816,2]
[364798942,1749245452361,-566.87,0.00027817,2]
[364798943,1749245452371,-150.0,0.00027834,2]
[364798944,1749245452381,-300.53,0.00027869,2]
[364798945,1749245452390,-304.03,0.00027871,2]
[364798946,1749245452400,-304.47,0.00027871,2]
[364798947,1749245452409,-9502.2355934,0.00027871,2]
[364798948,1749245452419,-10569.9823619,0.00027871,2]
[364798949,1749245452428,-2101.7268721,0.00027871,2]
[364798950,1749245452438,-2331.0346261,0.00027871,2]
[364798951,1749245452447,-4869.9975964,0.00027871,2]
[364798952,1749245452457,-5401.3360048,0.00027871,2]
[364798953,1749245452466,-1312.4163806,0.00027881,2]
[364798954,1749245452476,-1718.8090735,0.00027881,2]
[364798955,1749245452485,-876.0508775,0.00027881,2]
[364798956,1749245452495,-45150.86207654,0.0002789,7]
[364798957,1749245452504,-4834690.51293024,0.0002789,7]
[364798958,1749245452899,-150.0,0.00027725,5]
[364798959,1749245452909,-26790.95228529,0.0002789,7]
[364798960,1749245452925,-3799.93045815,0.0002789,7]
[364798961,1749245453019,-480.0,0.00027397,5]
[364798962,1749245453029,-76.12142121,0.0002789,7]
[364798963,1749245453041,-383.98899856,0.0002789,7]
[364798964,1749245453385,-163.98,0.00023836,2]
[364798965,1749245453395,-480.0,0.00027397,5]
[364798966,1749245453404,-204.23050409,0.00027397,5]
[364798967,1749245453416,-294.47949591,0.00027397,5]
[364798968,1749245453425,-213.497,0.00027533,2]
[364798969,1749245453435,-216.03949154,0.00027561,5]
[364798970,1749245453447,-263.96050846,0.00027561,5]
[364798971,1749245453456,-498.71,0.00027561,5]
[364798972,1749245453465,-150.0,0.00027698,5]
[364798973,1749245453475,-200.0,0.00027725,5]
[364798974,1749245453484,-480.0,0.00027726,5]
[364798975,1749245453493,-498.71,0.00027726,5]
[364798976,1749245453502,-979.93533184,0.0002789,7]
[364798977,1749245453514,-4673.32998,0.0002789,7]
[364798978,1749245454286,-295.506,0.00027533,2]
[364798979,1749245454296,-1857.37858122,0.0002789,7]
[364798980,1749245454307,-2075764.75395964,0.0002789,7]
[364798981,1749245454317,-480.0,0.0002789,5]
[364798982,1749245454326,-480.0,0.0002789,5]
[364798983,1749245454336,-480.0,0.0002789,5]
[364798984,1749245454345,-651.31,0.0002789,5]
[364798985,1749245454354,-480.0,0.0002789,5]
[364798986,1749245454364,-483.33,0.0002789,5]
[364798987,1749245454372,-538.52,0.0002789,5]
[364798988,1749245454382,-480.0,0.0002789,5]
[364798989,1749245454391,-480.0,0.0002789,2]
[364798990,1749245454401,-480.0,0.0002789,5]
[364798991,1749245454410,-480.0,0.0002789,5]
[364798992,1749245454419,-685.83,0.0002789,5]
[364798993,1749245454429,-480.0,0.0002789,5]
[364798994,1749245454438,-480.0,0.0002789,5]
[364798995,1749245454447,-549.23,0.0002789,5]
[364798996,1749245454456,-500.02,0.0002789,5]
[364798997,1749245454466,-619.23,0.0002789,5]
[364798998,1749245454475,-480.0,0.0002789,5]
[364798999,1749245454485,-480.0,0.0002789,5]
[364799000,1749245454495,-538.98,0.0002789,5]
[364799001,1749245454504,-480.0,0.0002789,5]
[364799002,1749245454514,-516.51,0.0002789,5]
[364799003,1749245454523,-480.0,0.0002789,5]
[364799004,1749245454532,-480.0,0.0002789,5]
[364799005,1749245454542,-480.0,0.0002789,5]
[364799006,1749245454550,-508.36,0.0002789,5]
[364799007,1749245454560,-480.0,0.0002789,5]
[364799008,1749245454575,-594.92,0.0002789,5]
[364799009,1749245454587,-480.0,0.0002789,5]
[364799010,1749245454596,-480.0,0.0002789,5]
[364799011,1749245454605,-655.89,0.0002789,5]
[364799012,1749245454615,-480.0,0.0002789,5]
[364799013,1749245454624,-480.0,0.0002789,5]
[364799014,1749245454633,-533.19,0.0002789,5]
[364799015,1749245454642,-480.0,0.0002789,5]
[364799016,1749245454651,-508.07,0.0002789,5]
[364799017,1749245454660,-480.0,0.0002789,5]
[364799018,1749245454670,-504.81,0.0002789,5]
[364799019,1749245454679,-480.0,0.0002789,5]
[364799020,1749245454688,-480.0,0.0002789,5]
[364799021,1749245454697,-480.0,0.0002789,5]
[364799022,1749245454706,-556.66,0.0002789,5]
[364799023,1749245454715,-656.61,0.0002789,5]
[364799024,1749245454724,-480.0,0.0002789,5]
[364799025,1749245454734,-480.0,0.0002789,5]
[364799026,1749245454743,-480.0,0.0002789,5]
[364799027,1749245454752,-880.83,0.0002789,5]
[364799028,1749245454761,-480.0,0.0002789,5]
[364799029,1749245454770,-1046.06,0.0002789,5]
[364799030,1749245454780,-571.800087,0.0002789,5]
[364799031,1749245454789,-480.0,0.0002789,5]
[364799032,1749245454798,-480.0,0.0002789,5]
[364799033,1749245454807,-480.0,0.0002789,5]
[364799034,1749245454816,-480.0,0.0002789,5]
[364799035,1749245454825,-480.0,0.0002789,5]
[364799036,1749245454835,-480.0,0.0002789,5]
[364799037,1749245454844,-559.351977,0.0002789,5]
[364799038,1749245454853,-480.0,0.0002789,5]
[364799039,1749245454862,-636.86,0.0002789,5]
[364799040,1749245454871,-492.47,0.0002789,5]
[364799041,1749245454881,-480.0,0.0002789,5]
[364799042,1749245454890,-480.0,0.0002789,5]
[364799043,1749245454902,-527.03,0.0002789,5]
[364799044,1749245454912,-527.07,0.0002789,5]
[364799045,1749245454922,-480.0,0.0002789,5]
[364799046,1749245454932,-480.0,0.0002789,5]
[364799047,1749245454942,-829.98,0.0002789,5]
[364799048,1749245454951,-480.0,0.0002789,5]
[364799049,1749245454962,-480.0,0.0002789,5]
[364799050,1749245454971,-480.0,0.0002789,5]
[364799051,1749245454982,-480.0,0.0002789,5]
[364799052,1749245454992,-480.0,0.0002789,5]
[364799053,1749245455002,-480.0,0.0002789,5]
[364799054,1749245455013,-492.47,0.0002789,5]
[364799055,1749245455024,-480.0,0.0002789,5]
[364799056,1749245455035,-523.07,0.0002789,5]
[364799057,1749245455048,-480.0,0.0002789,5]
[364799058,1749245455059,-480.0,0.0002789,5]
[364799059,1749245455069,-480.0,0.0002789,5]
[364799060,1749245455078,-480.0,0.0002789,5]
[364799061,1749245455089,-480.0,0.0002789,5]
[364799062,1749245455098,-800.29,0.0002789,5]
[364799063,1749245455108,-480.0,0.0002789,5]
[364799064,1749245455119,-480.0,0.0002789,5]
[364799065,1749245455129,-480.0,0.0002789,5]
[364799066,1749245455138,-702.95,0.0002789,5]
[364799067,1749245455147,-480.0,0.0002789,5]
[364799068,1749245455156,-771.000696,0.0002789,5]
[364799069,1749245455165,-480.0,0.0002789,5]
[364799070,1749245455174,-480.0,0.0002789,5]
[364799071,1749245455184,-480.0,0.0002789,5]
[364799072,1749245455193,-5472.06,0.0002789,5]
[364799073,1749245455202,-1065.447344,0.0002789,5]
[364799074,1749245455212,-480.0,0.0002789,5]
[364799075,1749245455222,-2440.57,0.0002789,5]
[364799076,1749245455231,-1814.61,0.0002789,5]
[364799077,1749245455240,-480.0,0.0002789,5]
[364799078,1749245455249,-5858.97,0.0002789,5]
[364799079,1749245455259,-2363.07,0.0002789,5]
[364799080,1749245455268,-1000.0,0.0002789,2]
[364799081,1749245455277,-480.0,0.0002789,5]
[364799082,1749245455286,-585.97,0.0002789,5]
[364799083,1749245455296,-480.0,0.0002789,5]
[364799084,1749245455306,-508.16226497,0.0002789,5]
[364799085,1749245455315,-659.35,0.0002789,5]
[364799086,1749245455324,-480.0,0.0002789,5]
[364799087,1749245455333,-1396.08,0.0002789,5]
[364799088,1749245455343,-642.87,0.0002789,5]
[364799089,1749245455352,-941.0,0.0002789,5]
[364799090,1749245455361,-1168.575528,0.0002789,5]